[Event "FIDE WYCC Open U14 2023"]
[Site "Montesilvano"]
[Date "2023.11.17"]
[Round "5.15"]
[White "Gkavardinas, Antonios"]
[Black "Yun, Hungi"]
[Result "0-1"]
[ECO "B90"]
[WhiteElo "2230"]
[BlackElo "1884"]
[Annotator "ChessBase"]
[PlyCount "84"]
[EventDate "2023.11.13"]
[EventType "swiss"]
[EventCountry "ITA"]
[SourceTitle "playchess.com"]
[Source "ChessBase"]
[SourceQuality "1"]
[TimeControl "40/5400+30:1800+30"]

1. e4 {[%emt 0:00:03]} c5 {[%emt 0:00:06]} 2. Nf3 {[%emt 0:00:09]} d6 {[%emt 0:00:09]} 3. d4 {[%emt 0:00:06]} cxd4 {[%emt 0:00:11]} 4. Nxd4 {[%emt 0:00:06]} Nf6 {[%emt 0:00:06]} 5. Nc3 {[%emt 0:00:13]} a6 {[%emt 0:00:05]} 6. Be3 {[%emt 0:00:00]} Ng4 {[%emt 0:00:39]} 7. Bc1 {[%emt 0:00:16]} Nf6 {[%emt 0:00:07]} 8. f3 {[%emt 0:01:01]} e6 {[%emt 0:00:08]} 9. Be3 {[%emt 0:01:21]} b5 {[%emt 0:00:05]} 10. Qd2 {[%emt 0:02:56]} Nbd7 {[%emt 0:02:18]} 11. g4 {[%emt 0:03:05]} b4 {[%emt 0:01:42]} 12. Nce2 {[%emt 0:03:06]} h6 {[%emt 0:00:51]} 13. g5 {[%emt 0:10:31]} hxg5 {[%emt 0:00:28]} 14. Bxg5 {[%emt 0:00:11]} Qc7 {[%emt 0:05:10]} 15. O-O-O Be7 {[%emt 0:18:09]} 16. Ng3 {[%emt 0:13:10]} Bb7 {[%emt 0:06:14]} 17. Bxf6 {[%emt 0:09:58]} Nxf6 {[%emt 0:04:36]} 18. Qxb4 d5 {[%emt 0:21:49]} 19. Qa4+ {[%emt 0:04:27]} Nd7 {[%emt 0:04:32]} 20. Kb1 {[%emt 0:09:46]} O-O {[%emt 0:02:23]} 21. c3 {[%emt 0:01:44]} Rfd8 {[%emt 0:06:27]} 22. Qc2 {[%emt 0:02:05]} Nf6 {[%emt 0:01:06]} 23. Bd3 {[%emt 0:02:11]} Rab8 {[%emt 0:03:54]} 24. Rhg1 {[%emt 0:06:58]} dxe4 {[%emt 0:00:24]} 25. Nxe4 {[%emt 0:01:59]} Nxe4 {[%emt 0:00:29]} 26. fxe4 {[%emt 0:04:59]} Bf6 {[%emt 0:02:29]} 27. Qf2 {[%emt 0:05:27]} Qe5 {[%emt 0:03:06]} 28. Rg4 {[%emt 0:02:20]} Ba8 {[%emt 0:04:11]} 29. Rf1 {[%emt 0:03:33]} Kf8 {[%emt 0:00:46]} 30. Bc2 {[%emt 0:02:52]} Rd7 {[%emt 0:00:58]} 31. Qe2 {[%emt 0:03:02]} Rxd4 {[%emt 0:08:45]} 32. cxd4 {[%emt 0:00:13]} Qxd4 {[%emt 0:00:02]} 33. Bb3 {[%emt 0:01:02]} Rb4 {[%emt 0:00:05]} 34. h3 {[%emt 0:04:41]} Bxe4+ {[%emt 0:00:33]} 35. Ka1 {[%emt 0:00:18]} Qe5 {[%emt 0:04:01]} 36. Qd2 {[%emt 0:03:19]} Rd4 {[%emt 0:00:38]} 37. Qc1 {[%emt 0:00:47]} a5 {[%emt 0:00:44]} 38. Re1 {[%emt 0:00:41]} a4 {[%emt 0:00:30]} 39. Bc2 {[%emt 0:00:00]} a3 {[%emt 0:00:30]} 40. Kb1 {[%emt 0:00:00]} Bxc2+ {[%emt 0:00:00]} 41. Kxc2 {[%emt 0:01:49]} Qf5+ {[%emt 0:05:04]} 42. Kb3 {[%emt 0:02:38]} Qb5+ {[%emt 0:00:17]} 0-1

[Event "FIDE WYCC Open U14 2023"]
[Site "Montesilvano"]
[Date "2023.11.17"]
[Round "5.16"]
[White "Haug, Havard"]
[Black "Daaevik Wadhawan"]
[Result "*"]
[WhiteElo "2223"]
[BlackElo "1810"]
[Annotator "ChessBase"]
[PlyCount "88"]
[EventDate "2023.11.13"]
[EventType "swiss"]
[EventCountry "ITA"]
[SourceTitle "playchess.com"]
[Source "ChessBase"]
[SourceQuality "1"]
[TimeControl "40/5400+30:1800+30"]

1. d4 {[%emt 0:00:03]} Nf6 {[%emt 0:00:50]} 2. Nc3 {[%emt 0:00:13]} d5 {[%emt 0:00:53]} 3. Bf4 {[%emt 0:00:08]} g6 {[%emt 0:00:09]} 4. e3 {[%emt 0:00:06]} Bg7 {[%emt 0:00:30]} 5. h4 {[%emt 0:00:12]} O-O {[%emt 0:00:03]} 6. h5 {[%emt 0:00:19]} c5 {[%emt 0:00:02]} 7. hxg6 {[%emt 0:00:20]} hxg6 {[%emt 0:00:02]} 8. Qd2 {[%emt 0:00:20]} Nc6 {[%emt 0:04:11]} 9. O-O-O {[%emt 0:00:39]} Qa5 {[%emt 0:00:13]} 10. a3 {[%emt 0:00:28]} Rd8 {[%emt 0:10:31]} 11. Bh6 {[%emt 0:03:17]} Bxh6 {[%emt 0:18:58]} 12. Rxh6 {[%emt 0:00:03]} Be6 {[%emt 0:00:33]} 13. Rh1 {[%emt 0:15:20]} Kg7 {[%emt 0:06:40]} 14. Bb5 {[%emt 0:10:53]} cxd4 {[%emt 0:09:52]} 15. exd4 {[%emt 0:03:55]} Rh8 {[%emt 0:00:09]} 16. Nge2 {[%emt 0:01:19]} Qc7 {[%emt 0:04:19]} 17. f3 {[%emt 0:05:56]} Qd6 {[%emt 0:04:15]} 18. Qg5 {[%emt 0:04:13]} Rxh1 {[%emt 0:07:55]} 19. Rxh1 {[%emt 0:00:04]} Rh8 {[%emt 0:00:10]} 20. Rxh8 {[%emt 0:00:31]} Kxh8 {[%emt 0:00:02]} 21. Bxc6 {[%emt 0:06:54]} Qxc6 {[%emt 0:02:17]} 22. Qe5 {[%emt 0:00:37]} Kh7 {[%emt 0:04:33]} 23. Nf4 {[%emt 0:02:07]} Nd7 {[%emt 0:00:29]} 24. Qg5 {[%emt 0:01:11]} Nf6 {[%emt 0:00:17]} 25. Qe5 {[%emt 0:02:50]} Nd7 {[%emt 0:00:08]} 26. Qe3 {[%emt 0:01:44]} a6 {[%emt 0:07:30]} 27. g4 {[%emt 0:04:24]} Qd6 {[%emt 0:02:06]} 28. Nce2 {[%emt 0:01:52]} g5 {[%emt 0:06:14]} 29. Nd3 {[%emt 0:05:45]} f6 {[%emt 0:01:41]} 30. Nc5 {[%emt 0:00:25]} Nxc5 {[%emt 0:00:25]} 31. dxc5 {[%emt 0:00:04]} Qe5 {[%emt 0:00:03]} 32. Qxe5 {[%emt 0:06:33]} fxe5 {[%emt 0:00:01]} 33. Ng3 {[%emt 0:00:21]} Kg6 {[%emt 0:01:07]} 34. Kd2 {[%emt 0:00:05]} Kf6 {[%emt 0:01:21]} 35. Ke3 {[%emt 0:00:43]} Bf7 {[%emt 0:05:52]} 36. b4 {[%emt 0:01:43]} Be8 {[%emt 0:00:32]} 37. c3 {[%emt 0:12:08]} Ba4 {[%emt 0:00:21]} 38. Ne2 {[%emt 0:00:38]} Ke6 {[%emt 0:01:10]} 39. c4 {[%emt 0:01:25]} d4+ {[%emt 0:00:53]} 40. Kf2 {[%emt 0:00:00]} Bc2 {[%emt 0:00:00]} 41. Ng3 {[%emt 0:03:56]} Bd3 {[%emt 0:07:12]} 42. Ne4 {[%emt 0:09:14]} Bxc4 {[%emt 0:01:31]} 43. Nxg5+ {[%emt 0:01:10]} Kd5 {[%emt 0:00:35]} 44. Ne4 {[%emt 0:03:44]} Bb5 {[%emt 0:00:15]} *

[Event "FIDE WYCC Open U14 2023"]
[Site "Montesilvano"]
[Date "2023.11.17"]
[Round "5.17"]
[White "Katsanis, Vasileios Dim"]
[Black "Prokhorov, Aleksey"]
[Result "0-1"]
[ECO "E92"]
[WhiteElo "2173"]
[BlackElo "1869"]
[Annotator "ChessBase"]
[PlyCount "94"]
[EventDate "2023.11.13"]
[EventType "swiss"]
[EventCountry "ITA"]
[SourceTitle "playchess.com"]
[Source "ChessBase"]
[SourceQuality "1"]
[TimeControl "40/5400+30:1800+30"]

1. d4 {[%emt 0:00:04]} Nf6 {[%emt 0:01:00]} 2. c4 {[%emt 0:00:16]} g6 {[%emt 0:00:59]} 3. Nc3 {[%emt 0:00:11]} Bg7 {[%emt 0:01:01]} 4. e4 {[%emt 0:00:09]} d6 {[%emt 0:01:00]} 5. Nf3 {[%emt 0:00:28]} O-O {[%emt 0:01:00]} 6. Be2 {[%emt 0:00:05]} e5 {[%emt 0:00:59]} 7. d5 {[%emt 0:00:11]} a5 {[%emt 0:01:01]} 8. Be3 {[%emt 0:00:19]} Ng4 {[%emt 0:01:00]} 9. Bg5 {[%emt 0:00:06]} f6 {[%emt 0:01:00]} 10. Bh4 {[%emt 0:00:05]} Nh6 {[%emt 0:01:30]} 11. Nd2 {[%emt 0:02:42]} Nf7 {[%emt 0:01:31]} 12. O-O Bh6 {[%emt 0:01:14]} 13. b3 {[%emt 0:08:28]} Na6 {[%emt 0:01:59]} 14. a3 {[%emt 0:00:26]} Nc5 {[%emt 0:00:41]} 15. Rb1 {[%emt 0:00:06]} Bd7 {[%emt 0:00:42]} 16. Re1 {[%emt 0:10:34]} b6 {[%emt 0:04:10]} 17. Nf1 {[%emt 0:02:50]} Ng5 {[%emt 0:00:45]} 18. Bxg5 {[%emt 0:05:45]} Bxg5 {[%emt 0:00:42]} 19. Bg4 {[%emt 0:04:27]} f5 {[%emt 0:05:07]} 20. Bh3 {[%emt 0:05:18]} Qf6 {[%emt 0:22:32]} 21. exf5 {[%emt 0:14:03]} gxf5 {[%emt 0:00:51]} 22. b4 {[%emt 0:01:00]} axb4 {[%emt 0:00:42]} 23. axb4 {[%emt 0:00:01]} Na4 {[%emt 0:00:48]} 24. Qc2 {[%emt 0:01:14]} Nxc3 {[%emt 0:33:45]} 25. Qxc3 {[%emt 0:00:06]} e4 {[%emt 0:00:21]} 26. Qb3 {[%emt 0:15:51]} Be8 {[%emt 0:00:46]} 27. Ng3 {[%emt 0:06:26]} Bg6 {[%emt 0:00:23]} 28. Qc2 {[%emt 0:05:42]} Qe5 {[%emt 0:02:57]} 29. c5 {[%emt 0:01:37]} e3 {[%emt 0:01:18]} 30. f3 {[%emt 0:02:31]} Bh4 {[%emt 0:07:08]} 31. Qc4 {[%emt 0:01:23]} f4 {[%emt 0:00:28]} 32. Rbd1 {[%emt 0:00:11]} b5 {[%emt 0:00:41]} 33. Qd4 {[%emt 0:00:43]} Qxd4 {[%emt 0:03:49]} 34. Rxd4 {[%emt 0:00:02]} dxc5 {[%emt 0:00:08]} 35. bxc5 {[%emt 0:00:07]} Ra4 {[%emt 0:00:05]} 36. Rdd1 {[%emt 0:02:44]} fxg3 {[%emt 0:00:57]} 37. Rxe3 {[%emt 0:01:45]} Bf6 {[%emt 0:00:29]} 38. Kh1 {[%emt 0:00:59]} Bd4 {[%emt 0:02:25]} 39. Re2 {[%emt 0:01:19]} Bxc5 {[%emt 0:00:12]} 40. hxg3 {[%emt 0:00:00]} b4 {[%emt 0:00:00]} 41. Rb2 {[%emt 0:00:55]} Rfa8 {[%emt 0:04:29]} 42. Be6+ {[%emt 0:00:15]} Kf8 {[%emt 0:00:35]} 43. f4 {[%emt 0:00:22]} Ra1 {[%emt 0:00:20]} 44. Rxa1 {[%emt 0:00:15]} Rxa1+ {[%emt 0:00:07]} 45. Kh2 {[%emt 0:00:01]} Rb1 {[%emt 0:00:12]} 46. Re2 {[%emt 0:00:12]} b3 {[%emt 0:00:44]} 47. f5 {[%emt 0:00:21]} Bh5 {[%emt 0:00:06]} 0-1

[Event "FIDE WYCC Open U14 2023"]
[Site "Montesilvano"]
[Date "2023.11.17"]
[Round "5.18"]
[White "Fan, Jingyi"]
[Black "Tregubenko, Nikolay"]
[Result "1/2-1/2"]
[ECO "E99"]
[WhiteElo "2035"]
[BlackElo "2138"]
[Annotator "NA"]
[PlyCount "82"]
[EventDate "2023.11.13"]
[EventType "swiss"]
[EventCountry "ITA"]
[SourceTitle "playchess.com"]
[Source "ChessBase"]
[SourceQuality "1"]
[TimeControl "40/5400+30:1800+30"]

1. d4 {[%emt 0:00:03]} Nf6 {[%emt 0:00:10]} 2. Nf3 {[%emt 0:00:06]} g6 {[%emt 0:00:20]} 3. c4 {[%emt 0:00:03]} Bg7 {[%emt 0:00:06]} 4. Nc3 {[%emt 0:00:04]} O-O {[%emt 0:00:08]} 5. e4 {[%emt 0:00:06]} d6 {[%emt 0:00:05]} 6. Be2 {[%emt 0:00:04]} e5 {[%emt 0:00:15]} 7. O-O {[%emt 0:00:06]} Nc6 {[%emt 0:00:13]} 8. d5 {[%emt 0:00:04]} Ne7 {[%emt 0:00:04]} 9. Ne1 {[%emt 0:00:37]} Nd7 {[%emt 0:01:31]} 10. f3 {[%emt 0:00:11]} f5 {[%emt 0:00:06]} 11. Nd3 {[%emt 0:00:06]} f4 {[%emt 0:05:43]} 12. b4 {[%emt 0:02:11]} g5 {[%emt 0:06:53]} 13. c5 {[%emt 0:00:33]} Nf6 {[%emt 0:01:03]} 14. a4 {[%emt 0:00:14]} h5 {[%emt 0:03:38]} 15. a5 {[%emt 0:02:16]} Ng6 {[%emt 0:12:11]} 16. b5 {[%emt 0:00:33]} g4 {[%emt 0:05:16]} 17. fxg4 {[%emt 0:00:10]} hxg4 {[%emt 0:00:47]} 18. c6 {[%emt 0:00:12]} bxc6 {[%emt 0:04:02]} 19. dxc6 {[%emt 0:00:06]} Be6 {[%emt 0:02:47]} 20. Nf2 {[%emt 0:05:24]} f3 {[%emt 0:07:30]} 21. gxf3 {[%emt 0:01:04]} Nh5 {[%emt 0:00:25]} 22. fxg4 {[%emt 0:11:28]} Nhf4 {[%emt 0:00:05]} 23. Ra3 {[%emt 0:02:13]} Qh4 {[%emt 0:05:08]} 24. Nd5 {[%emt 0:10:26]} Bxd5 {[%emt 0:07:08]} 25. exd5 {[%emt 0:00:16]} Rf7 {[%emt 0:01:51]} 26. Be3 {[%emt 0:23:42]} e4 {[%emt 0:03:39]} 27. Nxe4 {[%emt 0:05:30]} Bb2 {[%emt 0:02:48]} 28. Bf2 {[%emt 0:09:38]} Nxe2+ {[%emt 0:04:23]} 29. Qxe2 {[%emt 0:01:04]} Rxf2 {[%emt 0:00:15]} 30. Nxf2 {[%emt 0:03:15]} Bxa3 {[%emt 0:00:08]} 31. Qd3 {[%emt 0:01:42]} Ne5 {[%emt 0:08:47]} 32. Qxa3 {[%emt 0:00:29]} Rf8 {[%emt 0:00:05]} 33. Qh3 {[%emt 0:09:38]} Nf3+ {[%emt 0:00:28]} 34. Kh1 {[%emt 0:00:29]} Qg5 {[%emt 0:00:36]} 35. Qg2 {[%emt 0:05:41]} Nh4 {[%emt 0:01:33]} 36. Qe4 {[%emt 0:00:08]} Rxf2 {[%emt 0:01:11]} 37. Qe8+ {[%emt 0:02:35]} Kg7 {[%emt 0:02:42]} 38. Qd7+ {[%emt 0:00:36]} Kg6 {[%emt 0:00:27]} 39. Qe6+ {[%emt 0:01:39]} Kg7 {[%emt 0:00:10]} 40. Qd7+ {[%emt 0:00:00]} Kg6 {[%emt 0:00:00]} 41. Qe8+ {[%emt 0:06:29]} Kg7 {[%emt 0:00:29]} 1/2-1/2

[Event "FIDE WYCC Open U14 2023"]
[Site "Montesilvano"]
[Date "2023.11.17"]
[Round "5.19"]
[White "Dumanuly, Sultanbeibarys"]
[Black "Villa Tornero, Alex"]
[Result "*"]
[ECO "B15"]
[WhiteElo "1931"]
[BlackElo "2383"]
[Annotator "RC"]
[PlyCount "95"]
[EventDate "2023.11.13"]
[EventType "swiss"]
[EventCountry "ITA"]
[SourceTitle "playchess.com"]
[Source "ChessBase"]
[SourceQuality "1"]
[TimeControl "40/5400+30:1800+30"]

1. e4 {[%emt 0:00:01]} c6 {[%emt 0:01:08]} 2. d4 {[%emt 0:00:09]} d5 {[%emt 0:00:07]} 3. Nc3 {[%emt 0:00:06]} dxe4 {[%emt 0:02:42]} 4. Nxe4 {[%emt 0:00:04]} Nf6 {[%emt 0:01:03]} 5. Nxf6+ {[%emt 0:00:06]} exf6 {[%emt 0:00:15]} 6. c3 {[%emt 0:00:05]} Bd6 {[%emt 0:00:22]} 7. Bd3 {[%emt 0:00:05]} O-O {[%emt 0:02:36]} 8. Qc2 {[%emt 0:00:05]} Re8+ {[%emt 0:01:50]} 9. Ne2 {[%emt 0:00:05]} h5 {[%emt 0:02:31]} 10. O-O {[%emt 0:00:13]} Qc7 {[%emt 0:03:16]} 11. h3 {[%emt 0:02:25]} h4 {[%emt 0:01:42]} 12. c4 {[%emt 0:06:47]} Be6 {[%emt 0:12:36]} 13. f4 {[%emt 0:04:29]} f5 {[%emt 0:02:19]} 14. Rf3 {[%emt 0:02:05]} Nd7 {[%emt 0:06:54]} 15. Be3 {[%emt 0:02:59]} b5 {[%emt 0:06:03]} 16. b3 {[%emt 0:04:04]} g6 {[%emt 0:11:31]} 17. Bf2 {[%emt 0:06:11]} Be7 {[%emt 0:00:38]} 18. cxb5 {[%emt 0:12:08]} Bf6 {[%emt 0:06:09]} 19. Rc1 {[%emt 0:03:10]} Bd5 {[%emt 0:05:07]} 20. Re3 {[%emt 0:00:56]} Rxe3 {[%emt 0:02:19]} 21. Bxe3 {[%emt 0:00:07]} Re8 {[%emt 0:01:36]} 22. Bf2 {[%emt 0:02:48]} Re6 {[%emt 0:04:05]} 23. Bc4 {[%emt 0:06:56]} Be4 {[%emt 0:06:30]} 24. Qd2 {[%emt 0:01:23]} Rd6 {[%emt 0:00:34]} 25. bxc6 {[%emt 0:01:17]} Nb6 {[%emt 0:00:31]} 26. Nc3 {[%emt 0:05:05]} Rxc6 {[%emt 0:02:42]} 27. Bb5 {[%emt 0:01:34]} Rxc3 {[%emt 0:02:40]} 28. Qxc3 {[%emt 0:01:18]} Qxf4 {[%emt 0:00:33]} 29. Qe3 {[%emt 0:10:21]} Qd6 {[%emt 0:00:59]} 30. Bc4 {[%emt 0:02:03]} Qd8 {[%emt 0:02:39]} 31. Rd1 {[%emt 0:02:58]} Nd5 {[%emt 0:02:14]} 32. Bxd5 {[%emt 0:01:24]} Qxd5 {[%emt 0:00:02]} 33. Rc1 {[%emt 0:02:04]} Kg7 {[%emt 0:04:45]} 34. Rc5 {[%emt 0:01:39]} Qb7 {[%emt 0:00:32]} 35. d5 {[%emt 0:05:05]} Bxd5 {[%emt 0:00:24]} 36. Qd2 {[%emt 0:01:52]} Bxg2 {[%emt 0:01:56]} 37. Bd4 {[%emt 0:00:14]} Be4 {[%emt 0:02:39]} 38. Bxf6+ {[%emt 0:00:08]} Kxf6 {[%emt 0:00:01]} 39. Qd8+ {[%emt 0:04:40]} Kg7 {[%emt 0:00:05]} 40. Rc8 {[%emt 0:00:00]} Qb6+ {[%emt 0:00:00]} 41. Qxb6 {[%emt 0:00:21]} axb6 {[%emt 0:01:37]} 42. a4 {[%emt 0:04:29]} g5 {[%emt 0:01:09]} 43. b4 {[%emt 0:03:15]} g4 {[%emt 0:14:50]} 44. a5 {[%emt 0:00:12]} bxa5 {[%emt 0:00:36]} 45. bxa5 {[%emt 0:00:03]} g3 {[%emt 0:02:03]} 46. Rc4 {[%emt 0:02:35]} Bb7 {[%emt 0:01:16]} 47. Rxh4 {[%emt 0:00:27]} Kg6 {[%emt 0:00:59]} 48. Rb4 {[%emt 0:00:22]} *

[Event "FIDE WYCC Open U14 2023"]
[Site "Montesilvano"]
[Date "2023.11.17"]
[Round "5.20"]
[White "Uskov, Artem"]
[Black "Hobson, Kenneth"]
[Result "1-0"]
[ECO "A05"]
[WhiteElo "2380"]
[BlackElo "2142"]
[Annotator "RC"]
[PlyCount "65"]
[EventDate "2023.11.13"]
[EventType "swiss"]
[EventCountry "ITA"]
[SourceTitle "playchess.com"]
[Source "ChessBase"]
[SourceQuality "1"]
[TimeControl "40/5400+30:1800+30"]

1. Nf3 {[%emt 0:00:03]} Nf6 {[%emt 0:00:07]} 2. c4 {[%emt 0:00:06]} e6 {[%emt 0:00:18]} 3. Nc3 {[%emt 0:00:07]} d5 {[%emt 0:00:18]} 4. e3 {[%emt 0:00:04]} c5 {[%emt 0:03:03]} 5. cxd5 {[%emt 0:04:49]} exd5 {[%emt 0:00:15]} 6. d4 {[%emt 0:00:11]} Nc6 {[%emt 0:00:59]} 7. Be2 {[%emt 0:02:42]} Bg4 {[%emt 0:02:20]} 8. O-O {[%emt 0:01:36]} Be7 {[%emt 0:11:11]} 9. h3 {[%emt 0:01:42]} Be6 {[%emt 0:03:11]} 10. b3 {[%emt 0:14:36]} O-O {[%emt 0:01:56]} 11. Bb2 {[%emt 0:00:39]} Rc8 {[%emt 0:02:00]} 12. a3 {[%emt 0:12:12]} Ne4 {[%emt 0:08:51]} 13. dxc5 {[%emt 0:01:32]} Nxc5 {[%emt 0:05:44]} 14. Nb5 {[%emt 0:02:43]} Bf6 {[%emt 0:06:38]} 15. Nbd4 {[%emt 0:01:50]} Nxd4 {[%emt 0:01:20]} 16. Nxd4 {[%emt 0:04:12]} Qb6 {[%emt 0:02:37]} 17. Nxe6 {[%emt 0:08:17]} fxe6 {[%emt 0:03:15]} 18. Bxf6 {[%emt 0:00:19]} Rxf6 {[%emt 0:01:11]} 19. b4 {[%emt 0:00:38]} Ne4 {[%emt 0:01:35]} 20. Bd3 {[%emt 0:00:53]} Nd6 {[%emt 0:07:20]} 21. Qh5 {[%emt 0:02:24]} Nf5 {[%emt 0:07:05]} 22. Rac1 {[%emt 0:02:20]} Rcf8 {[%emt 0:01:29]} 23. Rc5 {[%emt 0:04:04]} Qd6 {[%emt 0:02:34]} 24. Rfc1 {[%emt 0:01:02]} g6 {[%emt 0:02:30]} 25. Qg5 {[%emt 0:04:36]} Ne7 {[%emt 0:01:46]} 26. Rc7 {[%emt 0:01:23]} Nc6 {[%emt 0:02:29]} 27. Rxb7 {[%emt 0:00:25]} Ne5 {[%emt 0:06:59]} 28. Qh6 {[%emt 0:04:26]} Nf7 {[%emt 0:00:53]} 29. Qh4 {[%emt 0:00:11]} e5 {[%emt 0:00:36]} 30. Rxa7 {[%emt 0:00:38]} e4 {[%emt 0:00:30]} 31. Ra6 {[%emt 0:00:24]} exd3 {[%emt 0:00:38]} 32. Rxd6 {[%emt 0:00:14]} Nxd6 {[%emt 0:00:05]} 33. Qd4 {[%emt 0:00:14]} 1-0

[Event "FIDE WYCC Open U14 2023"]
[Site "Montesilvano"]
[Date "2023.11.17"]
[Round "5.21"]
[White "Bazilius, Augustinas"]
[Black "Besou, Hussain"]
[Result "0-1"]
[ECO "D20"]
[WhiteElo "2138"]
[BlackElo "2341"]
[Annotator "RC"]
[PlyCount "68"]
[EventDate "2023.11.13"]
[EventType "swiss"]
[EventCountry "ITA"]
[SourceTitle "playchess.com"]
[Source "ChessBase"]
[SourceQuality "1"]
[TimeControl "40/5400+30:1800+30"]

1. d4 {[%emt 0:00:03]} d5 {[%emt 0:00:03]} 2. c4 {[%emt 0:00:05]} dxc4 {[%emt 0:00:06]} 3. e3 {[%emt 0:00:08]} Nf6 {[%emt 0:00:14]} 4. Bxc4 {[%emt 0:00:01]} e6 {[%emt 0:00:15]} 5. Nf3 {[%emt 0:00:02]} a6 {[%emt 0:00:23]} 6. O-O {[%emt 0:00:02]} c5 {[%emt 0:00:06]} 7. dxc5 {[%emt 0:00:14]} Qxd1 {[%emt 0:00:20]} 8. Rxd1 {[%emt 0:00:01]} Bxc5 {[%emt 0:00:09]} 9. a4 {[%emt 0:01:51]} b6 {[%emt 0:01:07]} 10. Nc3 {[%emt 0:01:48]} Bb7 {[%emt 0:02:42]} 11. Ne5 {[%emt 0:00:39]} Nbd7 {[%emt 0:02:37]} 12. Nxd7 {[%emt 0:00:06]} Nxd7 {[%emt 0:00:04]} 13. b3 {[%emt 0:00:54]} Ke7 {[%emt 0:01:07]} 14. Bb2 {[%emt 0:00:44]} h5 {[%emt 0:05:13]} 15. Rac1 {[%emt 0:01:51]} h4 {[%emt 0:05:13]} 16. h3 {[%emt 0:01:06]} Nf6 {[%emt 0:10:43]} 17. Ne2 {[%emt 0:01:57]} Rad8 {[%emt 0:00:53]} 18. Nf4 {[%emt 0:06:35]} Rxd1+ {[%emt 0:01:46]} 19. Rxd1 {[%emt 0:00:27]} Rg8 {[%emt 0:06:19]} 20. Nd3 {[%emt 0:15:55]} Rd8 {[%emt 0:03:01]} 21. Rc1 {[%emt 0:03:01]} Bd6 {[%emt 0:00:27]} 22. Bd4 {[%emt 0:16:43]} Nd7 {[%emt 0:00:15]} 23. Bc3 {[%emt 0:06:12]} g5 {[%emt 0:06:14]} 24. f3 {[%emt 0:01:56]} f5 {[%emt 0:05:19]} 25. Bb4 {[%emt 0:03:06]} Bxb4 {[%emt 0:00:57]} 26. Nxb4 {[%emt 0:00:01]} Nc5 {[%emt 0:00:50]} 27. Nc2 {[%emt 0:04:30]} Kf6 {[%emt 0:06:09]} 28. Ne1 {[%emt 0:06:06]} Rd2 {[%emt 0:03:14]} 29. Rc2 {[%emt 0:00:14]} Rd1 {[%emt 0:00:13]} 30. Kf2 {[%emt 0:00:01]} Rb1 {[%emt 0:01:40]} 31. Rc3 {[%emt 0:02:37]} g4 {[%emt 0:07:57]} 32. Nd3 {[%emt 0:04:46]} g3+ {[%emt 0:01:47]} 33. Ke2 {[%emt 0:00:09]} Nxd3 {[%emt 0:00:07]} 34. Kxd3 {[%emt 0:00:02]} Rd1+ {[%emt 0:00:16]} 0-1

[Event "FIDE WYCC Open U14 2023"]
[Site "Montesilvano"]
[Date "2023.11.17"]
[Round "5.22"]
[White "Warchol, Kamil"]
[Black "Goh, Zi Han"]
[Result "0-1"]
[ECO "B90"]
[WhiteElo "2095"]
[BlackElo "2333"]
[Annotator "RC"]
[PlyCount "116"]
[EventDate "2023.11.13"]
[EventType "swiss"]
[EventCountry "ITA"]
[SourceTitle "playchess.com"]
[Source "ChessBase"]
[SourceQuality "1"]
[TimeControl "40/5400+30:1800+30"]

1. e4 {[%emt 0:00:02]} c5 {[%emt 0:00:38]} 2. Nf3 {[%emt 0:00:11]} d6 {[%emt 0:00:08]} 3. d4 {[%emt 0:00:08]} cxd4 {[%emt 0:00:10]} 4. Nxd4 {[%emt 0:00:09]} Nf6 {[%emt 0:00:12]} 5. Nc3 {[%emt 0:00:13]} a6 {[%emt 0:00:30]} 6. Bd3 {[%emt 0:00:28]} e5 {[%emt 0:03:55]} 7. Nde2 {[%emt 0:00:42]} Be7 {[%emt 0:06:02]} 8. O-O {[%emt 0:01:25]} O-O {[%emt 0:00:57]} 9. Ng3 {[%emt 0:00:37]} b5 {[%emt 0:10:10]} 10. h3 {[%emt 0:03:57]} Re8 {[%emt 0:07:04]} 11. Re1 {[%emt 0:10:22]} g6 {[%emt 0:03:58]} 12. Bg5 {[%emt 0:12:31]} Nbd7 {[%emt 0:01:27]} 13. a4 {[%emt 0:07:44]} b4 {[%emt 0:03:16]} 14. Na2 {[%emt 0:02:04]} Rb8 {[%emt 0:03:48]} 15. Nc1 {[%emt 0:11:19]} Bb7 {[%emt 0:07:46]} 16. Nb3 {[%emt 0:01:54]} Qb6 {[%emt 0:11:44]} 17. Bc4 {[%emt 0:10:09]} Rbc8 {[%emt 0:06:38]} 18. Qd3 {[%emt 0:14:00]} Ng4 {[%emt 0:18:15]} 19. hxg4 {[%emt 0:03:03]} Bxg5 {[%emt 0:00:06]} 20. Bd5 {[%emt 0:04:13]} Nf6 {[%emt 0:02:07]} 21. a5 {[%emt 0:06:45]} Qc7 {[%emt 0:00:17]} 22. Bxb7 {[%emt 0:00:39]} Qxb7 {[%emt 0:00:04]} 23. Re2 {[%emt 0:01:17]} Red8 {[%emt 0:01:19]} 24. Nf1 {[%emt 0:04:39]} Nxg4 {[%emt 0:02:11]} 25. Qg3 {[%emt 0:00:20]} h5 {[%emt 0:00:11]} 26. f3 {[%emt 0:01:08]} Bf4 {[%emt 0:00:09]} 27. Qh4 {[%emt 0:00:51]} Qa7+ {[%emt 0:00:37]} 28. Kh1 {[%emt 0:00:08]} Ne3 {[%emt 0:00:34]} 29. Nxe3 {[%emt 0:03:18]} Bxe3 {[%emt 0:00:06]} 30. Qe1 {[%emt 0:00:22]} Bc5 {[%emt 0:03:03]} 31. Rd1 {[%emt 0:00:14]} Qe7 {[%emt 0:01:31]} 32. Rd5 {[%emt 0:00:24]} Ba7 {[%emt 0:00:23]} 33. g3 {[%emt 0:00:34]} Rc4 {[%emt 0:02:04]} 34. Red2 {[%emt 0:00:40]} Rc6 {[%emt 0:02:43]} 35. Rg2 {[%emt 0:00:50]} Qf6 {[%emt 0:01:37]} 36. Rd3 {[%emt 0:00:26]} Rc4 {[%emt 0:00:36]} 37. Kh2 {[%emt 0:00:28]} Rdc8 {[%emt 0:00:48]} 38. Qd1 {[%emt 0:00:17]} h4 {[%emt 0:00:39]} 39. g4 {[%emt 0:00:34]} Qf4+ {[%emt 0:00:25]} 40. Kh1 {[%emt 0:00:00]} Kg7 {[%emt 0:00:00]} 41. Rxd6 {[%emt 0:04:18]} h3 {[%emt 0:10:30]} 42. Rh2 {[%emt 0:09:05]} Rxc2 {[%emt 0:04:48]} 43. Rdd2 {[%emt 0:03:46]} Rxd2 {[%emt 0:01:07]} 44. Rxd2 {[%emt 0:02:52]} Be3 {[%emt 0:07:30]} 45. Rh2 {[%emt 0:03:28]} Rd8 {[%emt 0:03:06]} 46. Qf1 {[%emt 0:01:32]} Ba7 {[%emt 0:02:01]} 47. Rxh3 {[%emt 0:06:01]} Qe3 {[%emt 0:00:10]} 48. Na1 {[%emt 0:02:18]} Rc8 {[%emt 0:02:07]} 49. f4 {[%emt 0:00:59]} Qxe4+ {[%emt 0:00:18]} 50. Kh2 {[%emt 0:00:24]} exf4 {[%emt 0:00:54]} 51. g5 {[%emt 0:00:22]} Bd4 {[%emt 0:02:26]} 52. Rh4 {[%emt 0:01:36]} Qe3 {[%emt 0:00:51]} 53. Rh3 {[%emt 0:00:21]} Rc1 {[%emt 0:01:29]} 54. Qg2 {[%emt 0:00:46]} Qg1+ {[%emt 0:00:12]} 55. Qxg1 {[%emt 0:00:09]} Bxg1+ {[%emt 0:00:04]} 56. Kg2 {[%emt 0:00:04]} Rxa1 {[%emt 0:00:07]} 57. Rh1 {[%emt 0:00:05]} Rc1 {[%emt 0:00:22]} 58. Rxg1 {[%emt 0:00:31]} Rxg1+ {[%emt 0:00:06]} 0-1